bitfinex-derivatives/quotes_ETHF0:USTF0_20230403
["timestamp","ask_amount","ask_price","bid_price","bid_amount"]
[1680542064707,0.87175893,1795.5,1795.3,0.836]
[1680542067208,0.87175893,1795.5,1795.2,2.114]
[1680542067807,0.87175893,1795.4,1795.2,1.114]
[1680542068415,4.07955893,1795.4,1795.2,1.114]
[1680542069318,0.87175893,1795.4,1795.2,1.114]
[1680542069514,0.87175893,1795.5,1795.2,2.114]
[1680542070021,0.87175893,1795.4,1795.2,1.114]
[1680542070213,0.87175893,1795.4,1795.2,2.114]
[1680542070523,0.87175893,1795.4,1795.2,1.114]
[1680542070710,0.87175893,1795.4,1795.2,2.114]
[1680542072525,0.87175893,1795.5,1795.3,1.0]
[1680542072722,0.87175893,1795.4,1795.3,2.114]
[1680542072917,0.87175893,1795.5,1795.3,5.3218]
[1680542073927,1.16317381,1795.6,1795.3,5.3218]
[1680542073928,0.87175893,1795.4,1795.3,5.3218]
[1680542074730,0.87175893,1795.5,1795.3,5.3218]
[1680542075329,0.87175893,1795.5,1795.4,1.111]
[1680542075525,0.87175893,1795.6,1795.4,1.111]
[1680542075828,0.87175893,1795.6,1795.5,4.3168]
[1680542078226,1.16317381,1795.7,1795.5,1.98944226]
[1680542078431,1.16317381,1795.7,1795.6,1.0]
[1680542078638,1.45154227,1795.8,1795.6,2.114]
[1680542078830,0.87289999,1795.8,1795.7,4.3168]
[1680542079134,0.87289999,1795.9,1795.7,4.3168]
[1680542079323,0.87289999,1795.9,1795.8,1.106]
[1680542079520,0.87289999,1795.9,1795.8,2.106]
[1680542080334,1.45476845,1795.9,1795.8,2.106]
[1680542081225,0.58186846,1795.9,1795.8,2.106]
[1680542081430,0.58186846,1795.9,1795.8,3.22]
[1680542093233,0.58186846,1795.9,1795.8,4.50797233]
[1680542100048,0.58186846,1795.9,1795.8,3.50797233]
[1680542100241,0.58186846,1795.9,1795.8,4.50797233]
[1680542101445,0.58186846,1796.0,1795.8,4.50797233]
[1680542101649,0.58186846,1796.0,1795.9,5.3218]
[1680542102448,1.45476845,1796.0,1795.9,5.3218]
[1680542102648,0.58186846,1796.0,1795.9,5.3218]
[1680542102848,0.58186846,1796.0,1795.9,4.3218]
[1680542103350,1.45476845,1796.0,1795.9,4.3218]
[1680542103855,0.58186846,1796.0,1795.9,4.3218]
[1680542104451,1.45476845,1796.0,1795.9,4.3218]
[1680542104752,0.58186846,1796.0,1795.9,4.3218]
[1680542106352,0.58186846,1796.0,1795.9,5.61199379]
[1680542108053,1.45476845,1796.1,1795.9,5.61199379]
[1680542108251,1.45476845,1796.1,1796.0,2.111]
[1680542108456,0.87289999,1796.1,1796.0,2.111]
[1680542108659,1.45350587,1796.1,1796.0,2.111]
[1680542109256,1.45350587,1796.1,1796.0,3.40116489]
[1680542109563,1.45350587,1796.1,1796.0,2.40116489]
[1680542110960,0.87289999,1796.1,1796.0,2.40116489]
[1680542111351,0.58060849,1796.1,1796.0,2.40116489]
[1680542111859,1.45350848,1796.1,1796.0,2.40116489]
[1680542112549,0.87289999,1796.1,1796.0,2.40116489]
[1680542113453,1.45370145,1796.1,1796.0,2.40116489]
[1680542113760,0.58080146,1796.1,1796.0,2.40116489]
[1680542114559,0.87289999,1796.1,1796.0,2.40116489]
[1680542115873,0.58118413,1796.1,1796.0,2.40116489]
[1680542118674,0.87289999,1796.1,1796.0,2.40116489]
[1680542122372,1.16386665,1796.1,1796.0,2.40116489]
[1680542123173,1.16386665,1796.2,1796.0,2.40116489]
[1680542123477,1.16386665,1796.2,1796.1,1.114]
[1680542123478,1.45154227,1796.2,1796.1,1.114]
[1680542124373,1.45154227,1796.2,1796.1,2.40403055]
[1680542129282,1.45154227,1796.3,1796.1,2.40403055]
[1680542129482,2.141958,1796.3,1796.1,2.40403055]
[1680542129677,1.45154227,1796.2,1796.1,2.40403055]
[1680542130681,2.14197052,1796.2,1796.1,2.40403055]
[1680542132184,1.45154227,1796.2,1796.1,2.12503055]
[1680542136587,1.45154227,1796.2,1796.1,5.33283055]
[1680542138192,1.45154227,1796.2,1796.1,2.12503055]
[1680542138388,0.69043439,1796.2,1796.1,2.12503055]
[1680542141600,3.89823439,1796.2,1796.1,2.12503055]
[1680542141797,0.69043439,1796.2,1796.1,2.12503055]
[1680542142190,3.89823439,1796.2,1796.1,2.12503055]
[1680542142397,0.69043439,1796.2,1796.1,2.12503055]
[1680542144800,3.89823439,1796.2,1796.1,2.12503055]
[1680542145888,0.69043439,1796.2,1796.1,2.12503055]
[1680542148102,0.69043439,1796.2,1796.1,2.12183452]
[1680542150601,2.14855871,1796.2,1796.1,2.12183452]
[1680542151398,1.45812432,1796.2,1796.1,2.12183452]
[1680542152204,2.14855871,1796.2,1796.1,2.12183452]
[1680542152402,1.45812432,1796.2,1796.1,2.12183452]
[1680542157310,0.69043439,1796.2,1796.1,2.12183452]
[1680542178541,0.69043439,1796.2,1796.1,1.28683452]
[1680542178734,2.52543439,1796.2,1796.1,1.28683452]
[1680542178936,2.52543439,1796.2,1795.8,1.70968355]
[1680542179133,1.16679016,1795.9,1795.8,0.835]
[1680542179633,2.4584877,1796.0,1795.8,0.835]
[1680542179835,1.16688942,1795.9,1795.8,0.835]
[1680542180034,2.4584877,1796.0,1795.8,0.835]
[1680542180341,1.16699755,1795.9,1795.8,0.835]
[1680542181040,6.18485156,1795.9,1795.6,0.87468355]
[1680542181237,1.16683922,1795.7,1795.6,0.87468355]
[1680542181447,1.16683922,1795.7,1795.5,1.70468355]
[1680542181648,1.16683922,1795.7,1795.6,0.87468355]
[1680542182242,2.16683922,1795.7,1795.6,0.87468355]
[1680542182543,2.16683922,1795.7,1795.5,1.70468355]
[1680542182743,0.8750936,1795.6,1795.5,1.70468355]
[1680542184434,0.8750936,1795.6,1795.5,2.42033387]
[1680542184844,0.8750936,1795.6,1795.5,1.54565032]
[1680542188553,1.45814929,1795.6,1795.5,1.54565032]
[1680542190652,0.58305569,1795.6,1795.5,1.54565032]
[1680542192446,0.58305569,1795.6,1795.5,2.54565032]
[1680542193552,0.58305569,1795.6,1795.5,3.37765032]
[1680542195654,1.45814929,1795.7,1795.5,3.37765032]
[1680542195863,0.8750936,1795.7,1795.6,0.835]
[1680542196063,1.4579021,1795.7,1795.6,1.835]
[1680542196256,0.8750936,1795.7,1795.6,1.835]
[1680542196454,1.45789908,1795.7,1795.6,1.835]
[1680542196754,0.8750936,1795.7,1795.6,1.835]
[1680542196953,1.45789375,1795.7,1795.6,1.835]
[1680542197153,0.8750936,1795.7,1795.6,1.835]
[1680542197953,1.45788976,1795.7,1795.6,1.835]
[1680542198863,1.45788976,1795.7,1795.6,0.835]
[1680542199065,0.8750936,1795.7,1795.6,0.835]
[1680542199363,0.8750936,1795.7,1795.6,1.61751444]
[1680542201164,1.45795069,1795.7,1795.6,2.61751444]
[1680542201354,0.58285709,1795.7,1795.6,2.61751444]
[1680542201665,0.58285709,1795.8,1795.6,5.82531444]
[1680542201964,0.58285709,1795.8,1795.7,1.834]
[1680542202264,1.45795069,1795.8,1795.7,1.835]
[1680542202666,0.8750936,1795.8,1795.7,0.835]
[1680542211963,4.37463922,1795.8,1795.6,0.78251444]
[1680542212172,1.16650794,1795.7,1795.6,0.78251444]
[1680542212366,2.4584877,1795.7,1795.6,0.78251444]
[1680542213966,1.0,1795.7,1795.6,0.78251444]
[1680542214171,2.4584877,1795.7,1795.6,0.78251444]
[1680542214557,1.0,1795.7,1795.6,0.78251444]
[1680542214762,2.4584877,1795.7,1795.6,0.77532476]
[1680542216172,1.0,1795.7,1795.6,0.77532476]
[1680542216869,5.6662877,1795.8,1795.6,0.77532476]
[1680542217970,2.4584877,1795.7,1795.6,0.77532476]
[1680542218764,1.4584877,1795.7,1795.6,0.77532476]
[1680542222373,1.4584877,1795.7,1795.4,1.835]
[1680542222574,0.87461175,1795.5,1795.4,1.835]
[1680542222878,0.87461175,1795.5,1795.4,0.835]
[1680542229380,0.87461175,1795.5,1795.4,1.51777088]
[1680542235087,4.373949,1795.6,1795.4,1.51777088]
[1680542235285,1.166149,1795.5,1795.4,1.51777088]
[1680542235686,0.87498604,1795.5,1795.4,1.51777088]
[1680542235980,4.373949,1795.6,1795.4,1.51777088]
[1680542236590,0.87492776,1795.5,1795.4,1.51777088]
[1680542239786,4.373949,1795.6,1795.4,1.51777088]
[1680542240086,1.166149,1795.5,1795.4,1.51777088]
[1680542240391,4.373949,1795.6,1795.4,1.51777088]
[1680542241186,0.87481429,1795.5,1795.4,1.51777088]
[1680542241382,0.8748166,1795.5,1795.4,1.51777088]
[1680542241584,4.373949,1795.6,1795.4,1.51777088]
[1680542243190,0.87481262,1795.5,1795.4,1.51777088]
[1680542247589,0.87467441,1795.5,1795.4,1.51777088]
[1680542247783,1.166149,1795.5,1795.4,1.51777088]
[1680542247990,4.373949,1795.6,1795.4,1.51777088]
[1680542248582,1.166149,1795.5,1795.4,1.51777088]
[1680542249092,4.373949,1795.6,1795.4,1.51777088]
[1680542249694,1.166149,1795.5,1795.4,0.68277088]
[1680542250795,4.373949,1795.6,1795.5,0.00350471]
[1680542251197,4.373949,1795.6,1795.5,0.68577545]
[1680542251796,3.2078,1795.6,1795.5,0.68577545]
[1680542251998,4.6662877,1795.6,1795.5,0.68577545]
[1680542252497,3.2078,1795.6,1795.5,0.68577545]
[1680542252798,4.6662877,1795.6,1795.5,0.68577545]
[1680542253997,1.16725144,1795.6,1795.5,0.68577545]
[1680542254301,1.16725144,1795.6,1795.5,2.52077545]
[1680542255398,1.16725144,1795.6,1795.5,1.52077545]
[1680542255693,1.4584877,1795.7,1795.5,1.52077545]
[1680542255896,1.4584877,1795.7,1795.6,0.835]
[1680542258193,0.69061851,1795.7,1795.6,0.835]
[1680542258404,0.69061851,1795.8,1795.6,0.835]
[1680542258594,2.15076438,1795.7,1795.6,0.835]
[1680542258905,1.46014587,1795.7,1795.6,0.835]
[1680542259193,0.69061851,1795.7,1795.6,0.835]
[1680542259500,1.46009571,1795.7,1795.6,1.5612178]
[1680542261494,1.46009571,1795.8,1795.6,1.5612178]
[1680542261698,1.16823856,1795.7,1795.6,4.7690178]
[1680542261904,1.16823856,1795.7,1795.6,5.64370135]
[1680542262200,1.16823856,1795.7,1795.6,4.7690178]
[1680542262598,1.16823856,1795.7,1795.6,5.64370135]
[1680542262997,1.16823856,1795.7,1795.6,4.7690178]
[1680542264900,1.16823856,1795.8,1795.6,4.7690178]
[1680542265203,1.16823856,1795.8,1795.7,0.835]
[1680542267796,0.87546085,1795.8,1795.6,4.80870135]
[1680542267996,0.87546085,1795.8,1795.7,1.87468355]
[1680542268907,0.58337138,1795.8,1795.7,1.0]
[1680542269502,0.58337138,1795.8,1795.7,1.87468355]
[1680542270801,0.87546085,1795.9,1795.8,1.667]
[1680542270802,0.58337138,1795.9,1795.8,1.667]
[1680542271003,0.58337138,1795.9,1795.8,4.8778]
[1680542274307,0.87546085,1795.9,1795.7,0.835]
[1680542274508,0.87546085,1795.9,1795.8,0.81476377]
[1680542274713,0.87546085,1795.9,1795.8,4.02256377]
[1680542277109,1.45822273,1795.9,1795.8,4.02256377]
[1680542278614,0.87546085,1795.9,1795.8,4.02256377]
[1680542281108,0.87546085,1795.9,1795.8,0.81476377]
[1680542281415,2.16823856,1795.9,1795.8,0.81476377]
[1680542281710,3.00323856,1795.9,1795.8,0.81476377]
[1680542282115,3.00323856,1795.9,1795.5,0.83850471]
[1680542282312,0.58276827,1795.7,1795.5,0.83850471]
[1680542282514,0.58276827,1795.7,1795.6,0.81468741]
[1680542290116,0.58276827,1795.7,1795.6,4.02248741]
[1680542290610,0.58276827,1795.7,1795.6,4.85748741]
[1680542292118,1.45692067,1795.7,1795.6,4.85748741]
[1680542292323,0.58276827,1795.7,1795.6,4.85748741]
[1680542293219,0.8741524,1795.7,1795.6,4.85748741]
[1680542293813,1.45700137,1795.7,1795.6,4.85748741]
[1680542295014,0.8741524,1795.7,1795.6,4.85748741]
[1680542295512,1.45720703,1795.7,1795.6,4.85748741]
[1680542295715,0.8741524,1795.7,1795.6,4.85748741]
[1680542303526,1.16823856,1795.8,1795.6,4.85748741]
[1680542303726,0.8754474,1795.7,1795.6,4.85748741]
[1680542304120,0.87544262,1795.7,1795.6,4.85748741]
[1680542304726,1.16823856,1795.8,1795.6,4.85748741]
[1680542305629,1.16823856,1795.7,1795.6,1.64968741]
[1680542310124,1.46009571,1795.7,1795.6,0.81468741]
[1680542310430,2.15073313,1795.7,1795.6,0.59146976]
[1680542311534,1.46009571,1795.7,1795.6,0.59146976]
[1680542311830,2.15074033,1795.7,1795.6,0.59146976]
[1680542312027,2.29109571,1795.7,1795.6,0.59146976]
[1680542312237,2.98173677,1795.7,1795.6,0.59146976]
[1680542312422,2.98174039,1795.7,1795.6,0.59146976]
[1680542312627,2.29109571,1795.7,1795.6,0.59146976]
[1680542313336,2.98173985,1795.7,1795.6,0.59146976]
[1680542313530,2.29109571,1795.7,1795.6,0.59146976]
[1680542313738,1.0,1795.6,1795.3,1.70968355]
[1680542314031,0.58329857,1795.4,1795.3,1.70968355]
[1680542315330,0.58329857,1795.4,1795.3,2.70968355]
[1680542315535,0.58329857,1795.4,1795.3,0.835]
[1680542316630,0.58329857,1795.4,1795.3,1.835]
[1680542316831,0.58329857,1795.4,1795.3,1.70968355]
[1680542318339,0.58329857,1795.4,1795.3,2.70968355]
[1680542318641,0.58329857,1795.4,1795.3,1.70968355]
[1680542319024,0.58329857,1795.4,1795.3,2.70968355]
[1680542319643,0.58329857,1795.4,1795.3,1.70968355]
[1680542320539,0.58329857,1795.4,1795.3,2.70968355]
[1680542321043,0.58329857,1795.4,1795.3,1.70968355]
[1680542321544,0.58329857,1795.4,1795.3,2.0595976]
[1680542323943,0.87494785,1795.4,1795.3,1.18491405]
[1680542327942,1.45807814,1795.4,1795.3,2.8945976]
[1680542328147,0.87486007,1795.7,1795.5,5.561]
[1680542328345,1.16648009,1796.0,1795.5,5.561]
[1680542328346,1.16655448,1796.1,1795.8,5.0]
[1680542328555,1.16673687,1796.3,1796.0,5.7078]
[1680542328746,1.16673687,1796.3,1796.2,3.2078]
[1680542329052,1.16673687,1796.4,1796.2,4.8778]
[1680542329242,1.16673687,1796.4,1796.3,0.834]
[1680542329444,1.16673687,1796.5,1796.3,1.669]
[1680542329652,1.16673687,1796.6,1796.4,4.8778]
[1680542329951,1.16673687,1796.6,1796.5,2.67]
[1680542330751,1.16673687,1796.8,1796.5,2.67]
[1680542330942,1.16673687,1796.8,1796.7,0.835]
[1680542331346,1.16673687,1796.8,1796.7,4.0428]
[1680542332253,1.16673687,1796.8,1796.7,4.3208]
[1680542333451,1.16673687,1796.9,1796.7,4.3208]
[1680542333955,1.31673687,1797.0,1796.7,4.3208]
[1680542334357,1.31673687,1797.0,1796.8,1.35898936]
[1680542336857,4.52453687,1797.0,1796.8,1.35898936]
[1680542337551,3.3578,1797.0,1796.8,1.35898936]
[1680542339855,3.3578,1797.0,1796.8,1.22309043]
[1680542340058,1.0,1796.9,1796.6,2.113]
[1680542340358,1.0,1796.9,1796.7,1.33959642]
[1680542340558,1.0,1796.9,1796.6,1.113]
[1680542341361,4.3578,1797.0,1796.6,1.113]
[1680542341756,3.3578,1797.0,1796.6,2.113]
[1680542342063,3.3578,1797.0,1796.7,1.108]
[1680542347457,3.3578,1797.0,1796.8,1.34065504]
[1680542349364,0.15,1797.0,1796.8,1.34065504]
[1680542349560,3.3578,1797.0,1796.8,1.34065504]
[1680542351464,3.3578,1797.0,1796.8,2.45365504]
[1680542352157,3.3578,1797.0,1796.8,1.34065504]
[1680542352467,1.0,1796.9,1796.8,1.34065504]
[1680542353860,2.104,1796.9,1796.8,1.34065504]
[1680542354067,2.104,1796.9,1796.5,1.113]
[1680542354258,1.0,1796.6,1796.5,1.113]
[1680542354770,3.2078,1796.7,1796.5,1.113]
[1680542357064,1.0,1796.6,1796.5,1.113]
[1680542359767,3.7705352,1796.7,1796.5,1.113]
[1680542361867,1.0,1796.6,1796.5,1.113]
[1680542362171,1.0,1796.6,1796.4,1.108]
[1680542362765,3.7705352,1796.7,1796.4,1.108]
[1680542364269,1.0,1796.6,1796.5,1.17961557]
[1680542367475,1.0,1796.6,1796.2,1.108]
[1680542368670,3.2078,1796.5,1796.2,1.108]
[1680542369068,1.0,1796.4,1796.2,1.108]
[1680542371470,2.16673687,1796.4,1796.2,1.108]
[1680542372179,2.16673687,1796.4,1796.1,1.6735765]
[1680542372380,2.16673687,1796.4,1796.1,1.108]
[1680542373581,1.16673687,1796.3,1796.1,1.108]
[1680542373777,1.16673687,1796.2,1796.1,1.108]
[1680542377285,1.16673687,1796.2,1796.0,0.5491881]
[1680542377583,1.16673687,1796.2,1795.9,4.88547612]
[1680542377986,2.16673687,1796.2,1795.9,4.88547612]
[1680542378583,1.16673687,1796.2,1795.9,4.88547612]
[1680542379085,1.16673687,1796.2,1795.9,5.44956737]
[1680542379284,2.16673687,1796.2,1796.0,0.92252436]
[1680542379585,1.0,1796.2,1796.0,0.92252436]
[1680542379783,2.16673687,1796.2,1796.0,0.92252436]
[1680542380179,4.37453687,1796.3,1796.0,0.92252436]
[1680542381079,1.0,1796.2,1796.0,0.92252436]
[1680542382492,5.37453687,1796.3,1796.0,0.92252436]
[1680542386684,4.37453687,1796.3,1796.0,0.92252436]
[1680542386891,1.16673687,1796.3,1796.1,1.113]
[1680542387081,1.16673687,1796.4,1796.2,2.226]
[1680542387287,1.16673687,1796.5,1796.3,4.3208]
[1680542387587,1.16673687,1796.6,1796.4,2.113]
[1680542388084,1.16673687,1796.6,1796.4,1.113]
[1680542388381,0.8739475,1796.6,1796.5,4.3158]
[1680542388589,0.8739475,1796.7,1796.5,5.4288]
[1680542388789,0.8739475,1796.7,1796.6,1.108]
[1680542389291,0.8739475,1796.7,1796.6,2.108]
[1680542390887,0.8739475,1796.8,1796.6,2.108]
[1680542391089,0.8739475,1796.8,1796.7,5.3208]
[1680542391276,0.8739475,1796.9,1796.7,5.3208]
[1680542391481,0.8739475,1796.9,1796.8,1.113]
[1680542391692,0.8739475,1796.9,1796.8,2.113]
[1680542392183,0.8739475,1796.9,1796.8,1.113]
[1680542392482,0.8739475,1796.9,1796.8,2.113]
[1680542392680,0.8739475,1796.9,1796.8,1.113]
[1680542394391,0.8739475,1796.9,1796.8,2.4581315]
[1680542394690,1.0239475,1797.0,1796.8,2.4581315]
[1680542394882,1.0239475,1797.0,1796.9,3.2078]
[1680542396782,0.15,1797.0,1796.9,3.2078]
[1680542397086,1.0239475,1797.0,1796.8,2.4581315]
[1680542397293,1.0239475,1797.0,1796.9,1.113]
[1680542398087,0.15,1797.0,1796.9,1.113]
[1680542398491,1.0239475,1797.0,1796.9,1.113]
[1680542399392,0.15,1797.0,1796.9,1.113]
[1680542399792,1.0239475,1797.0,1796.9,1.113]
[1680542399994,0.15,1797.0,1796.9,1.113]
[1680542403604,0.15,1797.0,1796.9,4.3208]
[1680542405602,0.15,1797.0,1796.9,1.113]
[1680542405902,3.3578,1797.0,1796.8,2.4581315]
[1680542406100,4.2317475,1797.0,1796.9,1.26979131]
[1680542406496,5.2317475,1797.0,1796.8,1.113]
[1680542410705,4.2317475,1797.0,1796.8,1.113]
[1680542412112,4.2317475,1797.0,1796.7,1.113]
[1680542413201,5.3447475,1797.0,1796.6,0.55307828]
[1680542413404,3.2078,1796.8,1796.5,1.65935374]
[1680542413608,3.2078,1796.8,1796.5,2.21071032]
[1680542414508,4.0817475,1796.8,1796.5,2.21071032]
[1680542416514,4.07771256,1796.8,1796.5,2.21071032]
[1680542417415,0.8739475,1796.8,1796.5,2.21071032]
[1680542418017,4.0817475,1796.8,1796.5,2.21071032]
[1680542419221,4.0817475,1796.8,1796.6,1.20805432]
[1680542421919,0.8739475,1796.7,1796.6,1.20805432]
[1680542422133,1.99973687,1796.7,1796.3,0.835]
[1680542422316,5.08009454,1796.6,1796.3,0.835]
[1680542422515,4.08009454,1796.6,1796.3,0.835]
[1680542423016,4.08009454,1796.6,1796.3,1.835]
[1680542423229,4.08009454,1796.6,1796.3,0.835]
[1680542424432,4.08009454,1796.6,1796.3,1.835]
[1680542424633,4.08009454,1796.6,1796.3,0.835]
[1680542425234,4.08009454,1796.6,1796.3,1.835]
[1680542425530,4.08009454,1796.6,1796.3,0.835]
[1680542427133,4.08009454,1796.6,1796.2,1.113]
[1680542427734,4.08009454,1796.6,1796.5,1.106]
[1680542428125,3.2078,1796.6,1796.5,1.106]
[1680542428329,0.87309372,1796.6,1796.5,1.106]
[1680542429934,0.87309372,1796.6,1796.5,1.55365565]
[1680542433238,0.87309372,1796.6,1796.5,2.11645488]
[1680542435631,0.87309372,1796.6,1796.5,3.11645488]
[1680542436032,0.87309372,1796.6,1796.5,2.11645488]
[1680542438440,0.87309372,1796.6,1796.5,1.55365565]
[1680542441335,0.87309372,1796.6,1796.5,2.55365565]
[1680542442837,0.87309372,1796.6,1796.5,1.55365565]
[1680542443243,0.87309372,1796.6,1796.5,2.55365565]
[1680542443642,0.87309372,1796.6,1796.5,3.11872155]
[1680542444543,1.16673687,1796.7,1796.5,3.11872155]
[1680542444743,0.87441854,1796.6,1796.5,3.11872155]
[1680542445538,0.87442965,1796.6,1796.5,3.11872155]
[1680542445740,1.16673687,1796.7,1796.5,3.11872155]
[1680542446045,0.87461272,1796.6,1796.5,3.11872155]
[1680542446847,0.87461272,1796.6,1796.5,4.22972155]
[1680542447144,0.87461272,1796.7,1796.5,5.10483812]
[1680542447355,0.87461272,1796.7,1796.6,5.3138]
[1680542447841,0.87461272,1796.7,1796.6,5.76068107]
[1680542455453,1.16673687,1796.7,1796.6,1.55288107]
[1680542458048,4.37453687,1796.7,1796.6,1.55288107]
[1680542459041,4.37453687,1796.7,1796.6,0.44688107]
[1680542460249,1.16673687,1796.7,1796.6,0.44688107]
[1680542465265,1.16673687,1796.7,1796.6,1.00455693]
[1680542465457,1.16673687,1796.7,1796.6,0.44688107]
[1680542468966,1.16673687,1796.7,1796.6,0.99286653]
[1680542469167,1.16673687,1796.7,1796.6,0.44688107]
[1680542472970,1.16673687,1796.7,1796.6,1.01522809]
[1680542473169,1.16673687,1796.7,1796.6,0.44688107]
[1680542474371,2.15035963,1796.7,1796.6,1.01100242]
[1680542474568,3.89806392,1796.7,1796.6,0.44688107]
[1680542474873,1.0,1796.6,1796.4,1.113]
[1680542475067,1.16728679,1796.5,1796.4,1.113]
[1680542475463,2.45910849,1796.6,1796.4,1.113]
[1680542475979,1.45910849,1796.6,1796.4,1.113]
[1680542476173,2.14941303,1796.6,1796.4,1.113]
[1680542477080,1.16721484,1796.5,1796.4,1.113]
[1680542478188,6.35724752,1796.5,1796.2,1.106]
[1680542478378,6.35724752,1796.5,1795.9,2.02261887]
[1680542478379,4.66673226,1796.3,1795.9,1.43920782]
[1680542478686,1.80333903,1796.4,1796.0,1.113]
[1680542478687,4.37493696,1796.1,1796.0,1.113]
[1680542479278,4.08225389,1796.1,1796.0,1.21226707]
[1680542479977,0.87445389,1796.1,1796.0,1.21226707]
[1680542480279,4.08225389,1796.1,1796.0,1.21226707]
[1680542480483,4.08225389,1796.1,1796.0,0.09926707]
[1680542480784,4.08225389,1796.1,1795.8,1.98811657]
[1680542480972,0.58272506,1796.0,1795.8,1.113]
[1680542482882,3.79052506,1796.1,1795.8,1.113]
[1680542486986,3.2078,1796.1,1795.8,1.113]
[1680542489684,0.58272506,1796.2,1796.0,1.113]
[1680542492296,0.58272506,1796.2,1796.1,0.831]
[1680542494396,0.58272506,1796.2,1796.1,0.95305798]
[1680542495289,4.66497895,1796.3,1796.1,0.95305798]
[1680542496498,0.58272506,1796.2,1796.1,0.95305798]
[1680542502002,0.58272506,1796.2,1796.1,0.12205798]
[1680542509203,0.58272506,1796.2,1796.1,0.08730382]
[1680542509809,1.45717895,1796.3,1796.1,0.92130382]
[1680542510111,0.58272506,1796.3,1796.2,0.835]
[1680542510306,0.58272506,1796.3,1796.2,1.835]
[1680542510608,0.58272506,1796.4,1796.2,1.835]
[1680542510817,0.58272506,1796.4,1796.3,0.835]
[1680542511110,0.5822278,1796.4,1796.3,0.835]
[1680542513216,0.87445389,1796.4,1796.3,0.835]
[1680542513911,1.45692751,1796.4,1796.3,0.835]
[1680542514312,0.87445389,1796.4,1796.3,0.835]
[1680542520408,4.37493696,1796.5,1796.3,0.835]
[1680542520612,1.16713696,1796.4,1796.3,0.835]
[1680542521916,1.16713696,1796.4,1796.1,0.92230382]
[1680542522119,0.58316917,1796.2,1796.1,0.92230382]
[1680542523018,0.58316917,1796.2,1796.1,1.79742039]
[1680542524319,0.58316917,1796.2,1796.1,1.98228455]
[1680542527424,0.58316917,1796.2,1796.1,1.10716798]
[1680542530118,0.58316917,1796.2,1796.1,1.98228455]
[1680542534632,0.58316917,1796.2,1796.1,2.98228455]
[1680542534831,0.58316917,1796.2,1796.1,6.19008455]
[1680542546940,0.58316917,1796.2,1796.1,5.31496798]
[1680542547137,0.58316917,1796.2,1796.1,6.48179007]
[1680542549345,0.58316917,1796.2,1796.1,7.31679007]
[1680542552045,0.58316917,1796.2,1796.1,6.48179007]
[1680542555137,0.87475376,1796.2,1796.1,6.48179007]
[1680542558448,0.58407993,1796.2,1796.1,6.14496798]
[1680542558750,0.58407993,1796.2,1796.1,7.6034956]
[1680542560645,0.58407993,1796.2,1796.1,7.68667592]
[1680542560839,0.58407993,1796.2,1796.1,13.24767592]
[1680542562146,0.58407993,1796.2,1796.1,7.68667592]
[1680542562948,0.58407993,1796.2,1796.1,13.24767592]
[1680542563445,0.58407993,1796.2,1796.1,7.68667592]
[1680542564046,0.58407993,1796.2,1796.1,13.24767592]
[1680542564543,0.58407993,1796.2,1796.1,7.68667592]
[1680542564944,0.58407993,1796.2,1796.1,13.24767592]
[1680542565746,0.58407993,1796.2,1796.1,7.68667592]
[1680542568148,0.58407993,1796.2,1796.1,6.2281483]
[1680542569354,0.58407993,1796.2,1796.1,7.68667592]
[1680542570153,0.58407993,1796.2,1796.1,6.2281483]
[1680542570548,0.58407993,1796.2,1796.1,7.68667592]
[1680542570854,0.58407993,1796.2,1796.1,6.2281483]
[1680542571348,0.58407993,1796.2,1796.1,7.68667592]
[1680542571553,0.58407993,1796.2,1796.1,6.2281483]
[1680542573156,0.58407993,1796.2,1796.1,7.68667592]
[1680542573849,0.58407993,1796.2,1796.1,6.2281483]
[1680542574049,0.58407993,1796.2,1796.1,6.39542533]
[1680542575157,0.58407993,1796.2,1796.1,5.56542533]
[1680542575963,0.58407993,1796.2,1796.1,5.56558]
[1680542581165,0.58407993,1796.2,1796.1,6.56558]
[1680542581464,0.58407993,1796.2,1796.1,5.56529939]
[1680542586269,0.58407993,1796.2,1796.1,6.56529939]
[1680542587579,0.58407993,1796.2,1796.1,5.56529939]
[1680542587785,1.45883369,1796.2,1796.1,5.56529939]
[1680542589172,2.0367208,1796.2,1796.1,1.1903483]
[1680542589475,1.45893226,1796.2,1796.1,0.3553483]
[1680542589883,2.45893226,1796.2,1796.1,0.3553483]
[1680542590078,5.66673226,1796.2,1796.1,0.3553483]
[1680542590276,6.35715498,1796.2,1796.1,0.3553483]
[1680542591475,5.66673226,1796.2,1796.1,0.3553483]
[1680542591680,5.37531028,1796.2,1796.1,0.3553483]
[1680542591882,4.2078,1796.2,1796.1,0.3553483]
[1680542592484,5.37526789,1796.2,1796.1,0.3553483]
[1680542602184,6.21026789,1796.2,1796.1,0.3553483]
[1680542608596,5.0428,1796.2,1796.1,0.3553483]
[1680542611999,4.2078,1796.2,1796.1,0.3553483]
[1680542612802,5.37526789,1796.2,1796.1,0.3553483]
[1680542615399,1.0,1796.2,1796.1,0.3553483]
[1680542616290,1.55761781,1796.2,1796.1,0.3553483]
[1680542617201,2.7250857,1796.2,1796.1,0.3553483]
[1680542617398,1.55761781,1796.2,1796.1,0.3553483]
[1680542618101,0.55761781,1796.2,1796.1,0.3553483]
[1680542618399,1.16746789,1796.2,1796.1,0.3553483]
[1680542621501,2.16746789,1796.2,1796.1,0.3553483]
[1680542624507,1.16746789,1796.2,1796.1,0.3553483]
[1680542626814,1.16746789,1796.3,1796.1,4.3981483]
[1680542627018,1.16746789,1796.2,1796.1,1.1903483]
[1680542627218,2.14931202,1796.4,1796.1,4.3981483]
[1680542627219,1.16746789,1796.3,1796.1,4.3981483]
[1680542627715,1.16746789,1796.4,1796.1,4.3981483]
[1680542627915,0.58279353,1796.2,1796.1,4.3981483]
[1680542628612,0.58279353,1796.2,1796.1,5.27362795]
[1680542630725,0.58279353,1796.2,1796.1,6.27362795]
[1680542632012,0.58279353,1796.2,1796.1,7.10862795]
[1680542635627,0.58279353,1796.2,1796.1,7.40029939]
[1680542636623,0.58279353,1796.3,1796.1,7.40029939]
[1680542636826,0.58279353,1796.3,1796.2,3.5431546]
[1680542637125,0.58279353,1796.3,1796.2,3.93002748]
[1680542641031,0.58279353,1796.3,1796.2,3.05487288]
[1680542641529,0.58279353,1796.3,1796.2,2.05487288]
[1680542642125,0.58279353,1796.3,1796.2,2.22187288]